[Event "VII Lorca Open 2018"]
[Site "Lorca"]
[Date "2018.12.30"]
[Round "8"]
[White "Luch, Michal"]
[Black "Korneev Leskova, Svyatoslav"]
[Result "1/2-1/2"]
[ECO "C07"]
[WhiteElo "2360"]
[BlackElo "2134"]
[Annotator "NA"]
[PlyCount "97"]
[EventDate "2018.12.26"]
[EventType "swiss"]
[EventCountry "ESP"]
[SourceTitle "playchess.com"]
[Source "ChessBase"]
[SourceQuality "1"]
[TimeControl "5400+30"]

1. e4 {[%emt 0:00:00]} e6 {[%emt 0:00:00]} 2. d4 {[%emt 0:00:00]} d5 {[%emt 0:00:03]} 3. Nd2 {[%emt 0:00:00]} c5 {[%emt 0:00:17]} 4. exd5 {[%emt 0:00:00]} Qxd5 {[%emt 0:00:07]} 5. Ngf3 {[%emt 0:00:07]} cxd4 {[%emt 0:00:22]} 6. Bc4 {[%emt 0:00:03]} Qd6 {[%emt 0:00:08]} 7. O-O {[%emt 0:00:03]} Nf6 {[%emt 0:00:09]} 8. Nb3 {[%emt 0:00:05]} Nc6 {[%emt 0:00:14]} 9. Nbxd4 {[%emt 0:00:16]} Nxd4 {[%emt 0:00:10]} 10. Nxd4 {[%emt 0:00:02]} a6 {[%emt 0:00:09]} 11. Re1 {[%emt 0:00:48]} Qc7 {[%emt 0:00:39]} 12. Bb3 {[%emt 0:00:03]} Bd6 {[%emt 0:02:02]} 13. h3 {[%emt 0:15:55]} Bh2+ {[%emt 0:06:57]} 14. Kh1 {[%emt 0:00:13]} Bf4 {[%emt 0:00:13]} 15. Nf5 {[%emt 0:27:42]} Bxc1 {[%emt 0:03:08]} 16. Qxc1 {[%emt 0:07:39]} h6 {[%emt 0:02:20]} 17. c3 {[%emt 0:16:10]} O-O {[%emt 0:07:50]} 18. Nxh6+ {[%emt 0:09:38]} gxh6 {[%emt 0:00:02]} 19. Qxh6 {[%emt 0:00:04]} Nh7 {[%emt 0:00:11]} 20. Re3 {[%emt 0:01:23]} Kh8 {[%emt 0:07:43]} 21. Rd1 {[%emt 0:05:33]} Rg8 {[%emt 0:16:54]} 22. Rd4 {[%emt 0:02:28]} f5 {[%emt 0:02:04]} 23. Bxe6 {[%emt 0:01:00]} Bxe6 {[%emt 0:00:33]} 24. Qxe6 {[%emt 0:01:09]} Rae8 {[%emt 0:02:01]} 25. Qxf5 {[%emt 0:04:18]} Rxe3 {[%emt 0:00:05]} 26. fxe3 {[%emt 0:00:03]} Qg3 {[%emt 0:02:46]} 27. Qf3 {[%emt 0:02:04]} Qxf3 {[%emt 0:03:23]} 28. gxf3 {[%emt 0:00:02]} Rg3 {[%emt 0:00:08]} 29. Rd8+ {[%emt 0:02:44]} Kg7 {[%emt 0:00:15]} 30. Rd7+ {[%emt 0:00:07]} Kg8 {[%emt 0:00:52]} 31. Rxb7 {[%emt 0:00:23]} Rxf3 {[%emt 0:00:06]} 32. Kg2 {[%emt 0:03:50]} Rxe3 {[%emt 0:00:09]} 33. Rb6 {[%emt 0:00:18]} a5 {[%emt 0:01:48]} 34. h4 {[%emt 0:00:50]} Kg7 {[%emt 0:00:14]} 35. h5 {[%emt 0:00:38]} a4 {[%emt 0:01:00]} 36. h6+ {[%emt 0:01:22]} Kf7 {[%emt 0:00:04]} 37. Kf2 {[%emt 0:00:44]} Rh3 {[%emt 0:00:05]} 38. a3 {[%emt 0:00:27]} Nf6 {[%emt 0:00:04]} 39. Ke1 {[%emt 0:00:45]} Ne4 {[%emt 0:02:45]} 40. Kd1 {[%emt 0:00:31]} Nxc3+ {[%emt 0:00:33]} 41. bxc3 {[%emt 0:00:04]} Rxc3 {[%emt 0:00:01]} 42. h7 {[%emt 0:00:17]} Kg7 {[%emt 0:00:13]} 43. Rh6 {[%emt 0:00:31]} Kh8 {[%emt 0:00:06]} 44. Rh4 {[%emt 0:00:32]} Rxa3 {[%emt 0:00:05]} 45. Kc2 {[%emt 0:00:07]} Rg3 {[%emt 0:00:08]} 46. Kb2 {[%emt 0:00:09]} Rg7 {[%emt 0:00:05]} 47. Ka3 {[%emt 0:00:05]} Rxh7 {[%emt 0:00:06]} 48. Rxh7+ {[%emt 0:00:03]} Kxh7 {[%emt 0:44:43]} 49. Kxa4 {[%emt 0:03:15]} 1/2-1/2

[Event "VII Lorca Open 2018"]
[Site "Lorca"]
[Date "2018.12.30"]
[Round "8"]
[White "Ramiro Ovejero, Juan Luis"]
[Black "Martinez Fernandez, Adrian"]
[Result "0-1"]
[ECO "B52"]
[WhiteElo "2358"]
[BlackElo "2212"]
[Annotator "NA"]
[PlyCount "76"]
[EventDate "2018.12.26"]
[EventType "swiss"]
[EventCountry "ESP"]
[SourceTitle "playchess.com"]
[Source "ChessBase"]
[SourceQuality "1"]
[TimeControl "5400+30"]

1. e4 {[%emt 0:00:00]} c5 {[%emt 0:00:00]} 2. Nf3 {[%emt 0:00:00]} d6 {[%emt 0:00:00]} 3. Bb5+ {[%emt 0:00:00]} Bd7 {[%emt 0:00:00]} 4. Bxd7+ {[%emt 0:00:00]} Qxd7 {[%emt 0:00:00]} 5. c4 {[%emt 0:00:09]} Nc6 {[%emt 0:00:06]} 6. d4 {[%emt 0:00:15]} cxd4 {[%emt 0:00:12]} 7. Nxd4 {[%emt 0:00:05]} g6 {[%emt 0:00:13]} 8. b3 {[%emt 0:00:40]} Bg7 {[%emt 0:05:03]} 9. Bb2 {[%emt 0:00:06]} Nf6 {[%emt 0:00:12]} 10. Nc3 {[%emt 0:00:11]} O-O {[%emt 0:00:16]} 11. O-O {[%emt 0:00:05]} e6 {[%emt 0:10:53]} 12. Re1 {[%emt 0:04:35]} Nxd4 {[%emt 0:05:54]} 13. Qxd4 {[%emt 0:00:05]} Nd5 {[%emt 0:00:57]} 14. Qd2 {[%emt 0:00:27]} Nxc3 {[%emt 0:00:08]} 15. Bxc3 {[%emt 0:00:03]} Bxc3 {[%emt 0:00:13]} 16. Qxc3 {[%emt 0:00:04]} Qc6 {[%emt 0:00:16]} 17. Rad1 {[%emt 0:08:24]} Rfd8 {[%emt 0:02:51]} 18. h4 {[%emt 0:01:56]} h5 {[%emt 0:00:58]} 19. Qf6 {[%emt 0:05:31]} b5 {[%emt 0:04:27]} 20. cxb5 {[%emt 0:02:34]} Qxb5 {[%emt 0:00:08]} 21. Re3 {[%emt 0:02:43]} Rac8 {[%emt 0:12:59]} 22. Rf3 {[%emt 0:06:41]} Rd7 {[%emt 0:02:00]} 23. Rxd6 {[%emt 0:03:22]} Rc1+ {[%emt 0:16:05]} 24. Kh2 {[%emt 0:00:13]} Re1 {[%emt 0:00:24]} 25. Rxd7 {[%emt 0:10:12]} Qxd7 {[%emt 0:00:08]} 26. Qf4 {[%emt 0:03:48]} Qe7 {[%emt 0:06:16]} 27. Kg3 {[%emt 0:05:25]} e5 {[%emt 0:02:06]} 28. Qg5 {[%emt 0:06:01]} Qxg5+ {[%emt 0:02:56]} 29. hxg5 {[%emt 0:00:03]} Rxe4 {[%emt 0:00:04]} 30. Rf6 {[%emt 0:00:20]} Rg4+ {[%emt 0:00:06]} 31. Kf3 {[%emt 0:00:42]} e4+ {[%emt 0:00:43]} 32. Ke3 {[%emt 0:00:03]} Rxg2 {[%emt 0:01:29]} 33. b4 {[%emt 0:06:34]} Rxg5 {[%emt 0:01:21]} 34. a4 {[%emt 0:00:12]} h4 {[%emt 0:01:48]} 35. Rc6 {[%emt 0:00:44]} Rg1 {[%emt 0:03:47]} 36. f4 {[%emt 0:00:37]} exf3 {[%emt 0:00:26]} 37. Kxf3 {[%emt 0:00:06]} h3 {[%emt 0:01:39]} 38. Rc2 {[%emt 0:00:03]} g5 {[%emt 0:00:09]} 0-1

[Event "VII Lorca Open 2018"]
[Site "Lorca"]
[Date "2018.12.30"]
[Round "8"]
[White "Martin Duque, Jesus"]
[Black "Ajay Karthikeyan"]
[Result "1-0"]
[ECO "B36"]
[WhiteElo "2354"]
[BlackElo "2143"]
[Annotator "NA"]
[PlyCount "81"]
[EventDate "2018.12.26"]
[EventType "swiss"]
[EventCountry "ESP"]
[SourceTitle "playchess.com"]
[Source "ChessBase"]
[SourceQuality "1"]
[TimeControl "5400+30"]

1. e4 {[%emt 0:03:44]} c5 {[%emt 0:00:00]} 2. Nf3 {[%emt 0:00:02]} g6 {[%emt 0:00:03]} 3. d4 {[%emt 0:00:04]} cxd4 {[%emt 0:00:10]} 4. Nxd4 {[%emt 0:00:07]} Nc6 {[%emt 0:00:01]} 5. c4 {[%emt 0:00:06]} Nf6 {[%emt 0:00:04]} 6. Nc3 {[%emt 0:00:07]} d6 {[%emt 0:00:03]} 7. Be2 {[%emt 0:00:08]} Nxd4 {[%emt 0:00:02]} 8. Qxd4 {[%emt 0:00:09]} Bg7 {[%emt 0:00:02]} 9. Be3 {[%emt 0:00:09]} O-O {[%emt 0:00:06]} 10. Qd2 {[%emt 0:00:06]} a5 {[%emt 0:00:03]} 11. O-O {[%emt 0:00:17]} a4 {[%emt 0:00:01]} 12. Bd4 {[%emt 0:01:55]} Qa5 {[%emt 0:02:46]} 13. Rad1 {[%emt 0:00:12]} Be6 {[%emt 0:16:08]} 14. f4 {[%emt 0:00:22]} Qb4 {[%emt 0:11:41]} 15. a3 {[%emt 0:18:38]} Qb3 {[%emt 0:02:09]} 16. Rc1 {[%emt 0:11:20]} Nd7 {[%emt 1:04:41]} 17. Bxg7 {[%emt 0:12:56]} Kxg7 {[%emt 0:00:00]} 18. Qd4+ {[%emt 0:01:08]} f6 {[%emt 0:00:00]} 19. Nb5 {[%emt 0:02:09]} Rfc8 {[%emt 0:00:00]} 20. Kh1 {[%emt 0:06:43]} Rc5 {[%emt 0:00:00]} 21. Qd2 {[%emt 0:07:08]} Bg8 {[%emt 0:00:00]} 22. Rf3 {[%emt 0:03:21]} Qa2 {[%emt 0:00:00]} 23. Nc3 {[%emt 0:00:29]} Qb3 {[%emt 0:00:00]} 24. Nd5 {[%emt 0:00:37]} Rxd5 {[%emt 0:00:00]} 25. cxd5 {[%emt 0:02:40]} Qb6 {[%emt 0:00:00]} 26. Qb4 {[%emt 0:01:20]} Qd8 {[%emt 0:00:00]} 27. Rfc3 {[%emt 0:01:31]} b6 {[%emt 0:00:00]} 28. Rc6 {[%emt 0:02:01]} Nc5 {[%emt 0:00:00]} 29. Qxb6 {[%emt 0:05:03]} Qxb6 {[%emt 0:00:00]} 30. Rxb6 {[%emt 0:00:01]} Nxe4 {[%emt 0:00:00]} 31. Rc7 {[%emt 0:00:22]} Kf8 {[%emt 0:00:00]} 32. Bc4 {[%emt 0:01:02]} Nf2+ {[%emt 0:00:00]} 33. Kg1 {[%emt 0:00:04]} Ng4 {[%emt 0:00:00]} 34. Rbc6 {[%emt 0:02:51]} Ne3 {[%emt 0:00:00]} 35. Rc8+ {[%emt 0:00:04]} Rxc8 {[%emt 0:00:00]} 36. Rxc8+ {[%emt 0:00:06]} Kg7 {[%emt 0:00:00]} 37. Ba2 {[%emt 0:00:13]} Nd1 {[%emt 0:03:31]} 38. Rc2 {[%emt 0:00:51]} Ne3 {[%emt 0:00:24]} 39. Re2 {[%emt 0:00:30]} Nxd5 {[%emt 0:00:56]} 40. Bxd5 {[%emt 0:00:05]} Bxd5 {[%emt 0:00:01]} 41. Rxe7+ {[%emt 0:00:02]} 1-0

[Event "VII Lorca Open 2018"]
[Site "Lorca"]
[Date "2018.12.30"]
[Round "8"]
[White "Orantes Taboada, Francisco"]
[Black "Merario Alarcon, Andres"]
[Result "0-1"]
[ECO "C47"]
[WhiteElo "2295"]
[BlackElo "2404"]
[Annotator "NA"]
[PlyCount "138"]
[EventDate "2018.12.26"]
[EventType "swiss"]
[EventCountry "ESP"]
[SourceTitle "playchess.com"]
[Source "ChessBase"]
[SourceQuality "1"]
[TimeControl "5400+30"]

1. e4 {[%emt 0:00:00]} e5 {[%emt 0:00:21]} 2. Nf3 {[%emt 0:00:00]} Nc6 {[%emt 0:00:05]} 3. Nc3 {[%emt 0:00:00]} Nf6 {[%emt 0:00:09]} 4. d4 {[%emt 0:00:04]} exd4 {[%emt 0:00:07]} 5. Nxd4 {[%emt 0:00:04]} Bb4 {[%emt 0:00:08]} 6. Nxc6 {[%emt 0:00:09]} bxc6 {[%emt 0:00:03]} 7. Bd3 {[%emt 0:01:35]} d5 {[%emt 0:00:07]} 8. exd5 {[%emt 0:00:36]} O-O {[%emt 0:00:07]} 9. O-O {[%emt 0:00:15]} cxd5 {[%emt 0:00:21]} 10. Bg5 {[%emt 0:01:06]} c6 {[%emt 0:00:18]} 11. Qf3 {[%emt 0:02:41]} Bd6 {[%emt 0:02:05]} 12. Bxf6 {[%emt 0:05:08]} Qxf6 {[%emt 0:00:04]} 13. Qxf6 {[%emt 0:00:14]} gxf6 {[%emt 0:00:02]} 14. Ne2 {[%emt 0:10:00]} Be5 {[%emt 0:04:21]} 15. Rab1 {[%emt 0:02:23]} Be6 {[%emt 0:01:51]} 16. f4 {[%emt 0:26:02]} Bc7 {[%emt 0:11:12]} 17. b3 {[%emt 0:25:47]} Kh8 {[%emt 0:07:56]} 18. Kh1 {[%emt 0:03:18]} Bb6 {[%emt 0:01:36]} 19. f5 {[%emt 0:05:28]} Bd7 {[%emt 0:00:44]} 20. c4 {[%emt 0:03:41]} Rae8 {[%emt 0:00:34]} 21. cxd5 {[%emt 0:01:15]} cxd5 {[%emt 0:01:45]} 22. Rbd1 {[%emt 0:01:00]} Rg8 {[%emt 0:25:00]} 23. Nf4 {[%emt 0:01:50]} Bc6 {[%emt 0:02:36]} 24. Nh5 {[%emt 0:06:15]} Bd4 {[%emt 0:03:40]} 25. Rfe1 {[%emt 0:02:06]} Be5 {[%emt 0:00:57]} 26. Rc1 {[%emt 0:01:19]} Bb7 {[%emt 0:02:57]} 27. h3 {[%emt 0:00:32]} Rd8 {[%emt 0:04:50]} 28. Kg1 {[%emt 0:00:35]} d4 {[%emt 0:04:34]} 29. g4 {[%emt 0:00:06]} Rc8 {[%emt 0:00:32]} 30. Rc4 {[%emt 0:00:13]} Bd5 {[%emt 0:05:08]} 31. Rxc8 {[%emt 0:01:01]} Rxc8 {[%emt 0:00:02]} 32. Kf2 {[%emt 0:00:01]} Rc3 {[%emt 0:00:45]} 33. Ke2 {[%emt 0:00:53]} Bg2 {[%emt 0:02:39]} 34. Kd2 {[%emt 0:00:38]} h6 {[%emt 0:03:02]} 35. h4 {[%emt 0:00:27]} Bf3 {[%emt 0:02:15]} 36. Rf1 {[%emt 0:00:36]} Bxg4 {[%emt 0:01:27]} 37. Nf4 {[%emt 0:00:01]} a5 {[%emt 0:00:47]} 38. Ne2 {[%emt 0:00:41]} Rc7 {[%emt 0:00:58]} 39. Rg1 {[%emt 0:00:43]} Bf3 {[%emt 0:00:38]} 40. Rf1 {[%emt 0:00:33]} Bg2 {[%emt 0:00:50]} 41. Rg1 {[%emt 0:00:02]} Bd5 {[%emt 0:00:13]} 42. Rf1 {[%emt 0:01:09]} Ra7 {[%emt 0:00:53]} 43. Nf4 {[%emt 0:00:19]} Bc6 {[%emt 0:00:01]} 44. Bc4 {[%emt 0:00:12]} Kg7 {[%emt 0:02:07]} 45. Kd3 {[%emt 0:00:33]} Re7 {[%emt 0:00:56]} 46. Rf2 {[%emt 0:00:55]} Bb8 {[%emt 0:00:55]} 47. Nh5+ {[%emt 0:00:19]} Kf8 {[%emt 0:00:04]} 48. Nxf6 {[%emt 0:00:32]} Re3+ {[%emt 0:00:02]} 49. Kd2 {[%emt 0:00:01]} Bd6 {[%emt 0:02:28]} 50. Bd3 {[%emt 0:00:32]} Rh3 {[%emt 0:01:41]} 51. h5 {[%emt 0:01:01]} Be5 {[%emt 0:01:33]} 52. Ng4 {[%emt 0:00:31]} Bg3 {[%emt 0:00:03]} 53. Rf1 {[%emt 0:00:14]} Rxh5 {[%emt 0:00:30]} 54. Be2 {[%emt 0:00:35]} Rh4 {[%emt 0:00:21]} 55. Nf6 {[%emt 0:00:46]} Be5 {[%emt 0:01:13]} 56. Ng4 {[%emt 0:00:17]} Bd6 {[%emt 0:00:03]} 57. a4 {[%emt 0:00:36]} Rh3 {[%emt 0:01:20]} 58. Bd3 {[%emt 0:00:31]} Bb7 {[%emt 0:00:35]} 59. Rg1 {[%emt 0:00:19]} h5 {[%emt 0:01:54]} 60. Nf6 {[%emt 0:00:26]} h4 {[%emt 0:05:35]} 61. Nh7+ {[%emt 0:00:15]} Ke8 {[%emt 0:00:00]} 62. Rg8+ {[%emt 0:00:50]} Kd7 {[%emt 0:01:00]} 63. Rg7 {[%emt 0:00:23]} Rh2+ {[%emt 0:00:00]} 64. Kc1 {[%emt 0:00:19]} h3 {[%emt 0:00:00]} 65. Rxf7+ {[%emt 0:00:38]} Kc8 {[%emt 0:00:00]} 66. Ng5 {[%emt 0:00:57]} Bf4+ {[%emt 0:00:00]} 67. Kb1 {[%emt 0:00:03]} Bxg5 {[%emt 0:00:00]} 68. Rf8+ {[%emt 0:00:07]} Bd8 {[%emt 0:00:18]} 69. f6 {[%emt 0:00:06]} Rf2 {[%emt 0:00:09]} 0-1

[Event "VII Lorca Open 2018"]
[Site "Lorca"]
[Date "2018.12.30"]
[Round "8"]
[White "Sreeshwan Maralakshikari"]
[Black "Low, Zhen Yu Cyrus"]
[Result "1/2-1/2"]
[ECO "D85"]
[WhiteElo "2244"]
[BlackElo "2384"]
[Annotator "NA"]
[PlyCount "111"]
[EventDate "2018.12.26"]
[EventType "swiss"]
[EventCountry "ESP"]
[SourceTitle "playchess.com"]
[Source "ChessBase"]
[SourceQuality "1"]
[TimeControl "5400+30"]

1. d4 {[%emt 0:00:00]} Nf6 {[%emt 0:00:00]} 2. c4 {[%emt 0:00:00]} g6 {[%emt 0:00:00]} 3. Nc3 {[%emt 0:00:00]} d5 {[%emt 0:00:00]} 4. cxd5 {[%emt 0:00:00]} Nxd5 {[%emt 0:00:00]} 5. e4 {[%emt 0:00:00]} Nxc3 {[%emt 0:00:03]} 6. bxc3 {[%emt 0:00:00]} Bg7 {[%emt 0:00:06]} 7. Nf3 {[%emt 0:00:00]} c5 {[%emt 0:00:08]} 8. Be3 {[%emt 0:00:00]} Bg4 {[%emt 0:00:35]} 9. Rc1 {[%emt 0:01:12]} O-O {[%emt 0:00:09]} 10. Be2 {[%emt 0:00:30]} Qa5 {[%emt 0:00:28]} 11. Qd2 {[%emt 0:00:38]} Nd7 {[%emt 0:00:08]} 12. d5 {[%emt 0:01:48]} c4 {[%emt 0:00:06]} 13. h3 {[%emt 0:02:09]} Bxf3 {[%emt 0:00:07]} 14. Bxf3 {[%emt 0:00:56]} Rac8 {[%emt 0:00:49]} 15. O-O {[%emt 0:01:00]} Nc5 {[%emt 0:00:36]} 16. Bxc5 {[%emt 0:07:22]} Qxc5 {[%emt 0:05:44]} 17. g3 {[%emt 0:07:40]} b5 {[%emt 0:02:10]} 18. Kg2 {[%emt 0:01:34]} a5 {[%emt 0:09:29]} 19. Be2 {[%emt 0:00:14]} Rfd8 {[%emt 0:01:59]} 20. Qc2 {[%emt 0:02:05]} f5 {[%emt 0:03:45]} 21. Bf3 {[%emt 0:05:01]} Rf8 {[%emt 0:10:25]} 22. exf5 {[%emt 0:02:19]} gxf5 {[%emt 0:00:09]} 23. Rfd1 {[%emt 0:00:25]} Qd6 {[%emt 0:04:52]} 24. Qe2 {[%emt 0:01:42]} Kh8 {[%emt 0:00:43]} 25. Re1 {[%emt 0:02:10]} Rc7 {[%emt 0:01:17]} 26. h4 {[%emt 0:43:15]} Qc5 {[%emt 0:09:40]} 27. Red1 {[%emt 0:00:38]} Rf6 {[%emt 0:05:38]} 28. d6 {[%emt 0:02:24]} exd6 {[%emt 0:04:59]} 29. Rd5 {[%emt 0:00:04]} Qc6 {[%emt 0:00:05]} 30. Rxf5 {[%emt 0:00:41]} Qd7 {[%emt 0:00:06]} 31. Rxf6 {[%emt 0:00:04]} Bxf6 {[%emt 0:00:05]} 32. Bd5 {[%emt 0:00:03]} Rc8 {[%emt 0:05:16]} 33. Be6 {[%emt 0:09:24]} Qe7 {[%emt 0:00:18]} 34. Qg4 {[%emt 0:01:19]} Re8 {[%emt 0:00:34]} 35. Re1 {[%emt 0:00:30]} Bxc3 {[%emt 0:01:38]} 36. Re2 {[%emt 0:00:47]} Rf8 {[%emt 0:01:42]} 37. a4 {[%emt 0:03:41]} Qb7+ {[%emt 0:03:58]} 38. Kh2 {[%emt 0:00:23]} d5 {[%emt 0:01:24]} 39. axb5 {[%emt 0:00:30]} Qxb5 {[%emt 0:02:05]} 40. Qh5 {[%emt 0:00:21]} Bf6 {[%emt 0:05:33]} 41. Bf5 {[%emt 0:04:24]} Qb7 {[%emt 0:00:37]} 42. Re8 {[%emt 0:00:05]} Rxe8 {[%emt 0:00:35]} 43. Qxe8+ {[%emt 0:00:03]} Kg7 {[%emt 0:00:06]} 44. Be6 {[%emt 0:00:10]} c3 {[%emt 0:04:08]} 45. Qg8+ {[%emt 0:00:07]} Kh6 {[%emt 0:00:01]} 46. Bxd5 {[%emt 0:01:10]} Qe7 {[%emt 0:03:32]} 47. Bb3 {[%emt 0:01:01]} Qc5 {[%emt 0:04:52]} 48. Kg2 {[%emt 0:01:25]} Qc6+ {[%emt 0:01:18]} 49. Bd5 {[%emt 0:00:33]} Qd6 {[%emt 0:00:09]} 50. Bb3 {[%emt 0:01:19]} Qe7 {[%emt 0:02:11]} 51. Kh2 {[%emt 0:00:06]} Bd4 {[%emt 0:02:35]} 52. Bc2 {[%emt 0:01:34]} Bxf2 {[%emt 0:00:47]} 53. Bxh7 {[%emt 0:00:09]} Bxg3+ {[%emt 0:00:39]} 54. Kxg3 {[%emt 0:00:05]} Qg7+ {[%emt 0:08:41]} 55. Qxg7+ {[%emt 0:02:30]} Kxg7 {[%emt 0:00:30]} 56. Bc2 {[%emt 0:00:30]} 1/2-1/2

[Event "VII Lorca Open 2018"]
[Site "Lorca"]
[Date "2018.12.30"]
[Round "8"]
[White "Montanes Arribas, Adrian"]
[Black "Medarde Santiago, Luis Marcos"]
[Result "0-1"]
[ECO "A63"]
[WhiteElo "2242"]
[BlackElo "2386"]
[Annotator "NA"]
[PlyCount "170"]
[EventDate "2018.12.26"]
[EventType "swiss"]
[EventCountry "ESP"]
[SourceTitle "playchess.com"]
[Source "ChessBase"]
[SourceQuality "1"]
[TimeControl "5400+30"]

1. d4 {[%emt 0:03:04]} Nf6 {[%emt 0:02:33]} 2. c4 {[%emt 0:00:06]} e6 {[%emt 0:00:12]} 3. g3 {[%emt 0:00:15]} c5 {[%emt 0:00:18]} 4. d5 {[%emt 0:00:11]} exd5 {[%emt 0:00:10]} 5. cxd5 {[%emt 0:00:06]} d6 {[%emt 0:00:08]} 6. Nc3 {[%emt 0:00:08]} g6 {[%emt 0:00:11]} 7. Bg2 {[%emt 0:00:05]} Bg7 {[%emt 0:00:04]} 8. Nf3 {[%emt 0:00:09]} O-O {[%emt 0:00:05]} 9. O-O {[%emt 0:00:09]} Re8 {[%emt 0:00:09]} 10. Re1 {[%emt 0:03:28]} a6 {[%emt 0:02:07]} 11. a4 {[%emt 0:00:34]} Nbd7 {[%emt 0:00:25]} 12. e4 {[%emt 0:04:10]} Ng4 {[%emt 0:00:11]} 13. Nd2 {[%emt 0:07:15]} Nge5 {[%emt 0:08:36]} 14. Qc2 {[%emt 0:05:34]} Nf8 {[%emt 0:17:02]} 15. h3 {[%emt 0:20:36]} c4 {[%emt 0:06:53]} 16. Re3 {[%emt 0:12:36]} Qa5 {[%emt 0:18:29]} 17. Ra3 {[%emt 0:07:50]} Qc5 {[%emt 0:03:54]} 18. Nd1 {[%emt 0:00:21]} Bd7 {[%emt 0:06:18]} 19. a5 {[%emt 0:00:32]} Rac8 {[%emt 0:03:27]} 20. Rec3 {[%emt 0:03:35]} Qb4 {[%emt 0:07:23]} 21. Ne3 {[%emt 0:07:34]} Bb5 {[%emt 0:00:34]} 22. Bf1 {[%emt 0:06:04]} Nd3 {[%emt 0:06:53]} 23. Bxd3 {[%emt 0:04:50]} cxd3 {[%emt 0:00:45]} 24. Qb3 {[%emt 0:00:11]} Bxc3 {[%emt 0:00:33]} 25. bxc3 {[%emt 0:00:10]} Qxb3 {[%emt 0:00:45]} 26. Rxb3 {[%emt 0:00:02]} Nd7 {[%emt 0:01:29]} 27. Ba3 {[%emt 0:04:09]} Nc5 {[%emt 0:02:56]} 28. Bxc5 {[%emt 0:00:02]} Rxc5 {[%emt 0:00:33]} 29. c4 {[%emt 0:01:21]} Ba4 {[%emt 0:00:25]} 30. Ra3 {[%emt 0:02:48]} Bc2 {[%emt 0:01:52]} 31. g4 {[%emt 0:02:17]} Rb8 {[%emt 0:01:57]} 32. g5 {[%emt 0:00:57]} f6 {[%emt 0:03:03]} 33. gxf6 {[%emt 0:02:05]} Rf8 {[%emt 0:00:53]} 34. e5 {[%emt 0:00:26]} dxe5 {[%emt 0:00:43]} 35. Ne4 {[%emt 0:00:02]} Rcc8 {[%emt 0:01:55]} 36. Kf1 {[%emt 0:01:34]} d2 {[%emt 0:02:29]} 37. Nxd2 {[%emt 0:00:01]} Bf5 {[%emt 0:00:09]} 38. Rb3 {[%emt 0:01:53]} Bxh3+ {[%emt 0:00:42]} 39. Ke1 {[%emt 0:00:12]} Rc7 {[%emt 0:00:45]} 40. Ne4 {[%emt 0:00:28]} Bf5 {[%emt 0:00:27]} 41. Nd6 {[%emt 0:00:40]} Bc8 {[%emt 0:00:54]} 42. Rb6 {[%emt 0:01:49]} h5 {[%emt 0:00:23]} 43. Ne4 {[%emt 0:00:27]} h4 {[%emt 0:01:02]} 44. Kf1 {[%emt 0:00:21]} Bf5 {[%emt 0:00:17]} 45. Ng5 {[%emt 0:00:41]} Rd7 {[%emt 0:00:56]} 46. c5 {[%emt 0:00:32]} Rc8 {[%emt 0:00:13]} 47. f7+ {[%emt 0:00:29]} Kg7 {[%emt 0:00:25]} 48. c6 {[%emt 0:00:26]} bxc6 {[%emt 0:00:15]} 49. dxc6 {[%emt 0:00:01]} Rd6 {[%emt 0:01:05]} 50. c7 {[%emt 0:00:27]} Rd7 {[%emt 0:01:07]} 51. Nxf5+ {[%emt 0:00:38]} gxf5 {[%emt 0:00:00]} 52. Rxa6 {[%emt 0:00:03]} h3 {[%emt 0:00:21]} 53. Kg1 {[%emt 0:00:34]} Rdxc7 {[%emt 0:00:24]} 54. Ne6+ {[%emt 0:00:07]} Kxf7 {[%emt 0:00:05]} 55. Nxc7 {[%emt 0:00:02]} Rxc7 {[%emt 0:00:04]} 56. Rh6 {[%emt 0:00:43]} Rc3 {[%emt 0:00:49]} 57. a6 {[%emt 0:01:13]} Ra3 {[%emt 0:00:20]} 58. a7 {[%emt 0:00:16]} Kg7 {[%emt 0:00:21]} 59. Rxh3 {[%emt 0:00:12]} Rxa7 {[%emt 0:00:12]} 60. Rb3 {[%emt 0:00:52]} Kf6 {[%emt 0:00:12]} 61. Kg2 {[%emt 0:00:38]} Kg5 {[%emt 0:00:37]} 62. Rg3+ {[%emt 0:01:11]} Kf6 {[%emt 0:01:02]} 63. Rb3 {[%emt 0:00:05]} Rd7 {[%emt 0:00:09]} 64. Kf3 {[%emt 0:00:46]} Kg5 {[%emt 0:00:39]} 65. Ke2 {[%emt 0:00:26]} Ra7 {[%emt 0:00:50]} 66. Rb2 {[%emt 0:00:43]} Ra4 {[%emt 0:00:09]} 67. Rc2 {[%emt 0:00:25]} Rb4 {[%emt 0:00:06]} 68. Ra2 {[%emt 0:00:04]} Kf4 {[%emt 0:00:10]} 69. Rc2 {[%emt 0:00:15]} Re4+ {[%emt 0:01:25]} 70. Kf1 {[%emt 0:00:07]} Ra4 {[%emt 0:01:07]} 71. Ke2 {[%emt 0:00:09]} Ra5 {[%emt 0:00:21]} 72. Rc4+ {[%emt 0:00:50]} e4 {[%emt 0:00:15]} 73. Rc2 {[%emt 0:00:01]} Ra3 {[%emt 0:00:09]} 74. Rb2 {[%emt 0:00:06]} Kg4 {[%emt 0:00:18]} 75. Rb8 {[%emt 0:02:08]} Ra2+ {[%emt 0:00:44]} 76. Ke3 {[%emt 0:00:50]} Ra3+ {[%emt 0:00:10]} 77. Ke2 {[%emt 0:00:01]} Ra2+ {[%emt 0:00:33]} 78. Ke3 {[%emt 0:00:01]} f4+ {[%emt 0:00:01]} 79. Kxe4 {[%emt 0:00:08]} Re2+ {[%emt 0:00:09]} 80. Kd3 {[%emt 0:00:01]} Rxf2 {[%emt 0:01:43]} 81. Rg8+ {[%emt 0:00:01]} Kf3 {[%emt 0:00:15]} 82. Rb8 {[%emt 0:03:03]} Re2 {[%emt 0:01:02]} 83. Rf8 {[%emt 0:00:19]} Re7 {[%emt 0:00:06]} 84. Rf6 {[%emt 0:00:45]} Rd7+ {[%emt 0:00:10]} 85. Kc2 {[%emt 0:00:10]} Ke3 {[%emt 0:00:11]} 0-1